bitfinex-derivatives/quotes_ETHF0:USTF0_20250810
["timestamp","ask_amount","ask_price","bid_price","bid_amount"]
[1754797743358,0.6242,4243.1,4242.7,2.3244]
[1754797743359,0.35351,4242.8,4242.7,2.3244]
[1754797743561,0.35351,4242.8,4242.7,4.23297676]
[1754797743760,4.899,4242.9,4242.8,3.8943]
[1754797744061,4.5455,4242.9,4242.8,4.23297676]
[1754797744459,0.35347,4243.3,4242.8,5.11637676]
[1754797744761,0.35347,4243.3,4243.2,3.8943]
[1754797744962,0.35347,4243.3,4243.2,26.53697676]
[1754797746863,2.30787,4243.3,4243.2,26.53697676]
[1754797747059,4.16977,4243.3,4243.2,0.33867676]
[1754797747267,4.16977,4243.3,4243.2,22.63867676]
[1754797747856,4.16977,4243.3,4243.2,0.33867676]
[1754797748462,4.16977,4243.3,4243.1,22.3]
[1754797748664,1.91207,4243.3,4243.2,0.33896776]
[1754797749262,4.16977,4243.3,4243.2,0.33896776]
[1754797751568,4.16977,4243.3,4243.2,7.76e-06]
[1754797751769,4.16977,4243.3,4243.2,1.07910776]
[1754797752069,4.16977,4243.3,4243.2,2.40310776]
[1754797752768,4.16977,4243.3,4243.2,1.07910776]
[1754797752970,4.16977,4243.3,4243.2,0.55870776]
[1754797753168,1.91207,4243.3,4243.2,7.76e-06]
[1754797753365,1.91207,4243.3,4243.2,1.49700776]
[1754797753561,1.91207,4243.3,4243.2,2.40310776]
[1754797753761,4.16977,4243.3,4243.2,0.55870776]
[1754797754270,4.16977,4243.3,4243.2,2.40310776]
[1754797754468,4.16977,4243.3,4243.2,3.03710776]
[1754797754775,0.35347,4243.3,4243.2,3.03710776]
[1754797754965,0.35347,4243.3,4243.2,3.79920776]
[1754797755473,2.15507,4243.3,4243.2,3.79920776]
[1754797756172,4.19127,4243.3,4243.2,25.32410776]
[1754797756575,4.19127,4243.3,4243.2,3.03710776]
[1754797756772,4.19127,4243.3,4243.2,25.32310776]
[1754797757163,4.19127,4243.3,4243.2,26.08520776]
[1754797757367,4.19127,4243.3,4243.2,26.0852]
[1754797757570,3.36147,4243.3,4243.2,26.0852]
[1754797757770,0.35347,4243.3,4243.2,26.0852]
[1754797757976,0.35346,4243.4,4243.2,23.93526271]
[1754797758178,0.35346,4243.4,4243.3,3.7992]
[1754797759076,0.90596,4243.4,4243.3,3.7992]
[1754797759279,1.71806,4243.4,4243.3,3.7992]
[1754797759578,0.35346,4243.4,4243.3,3.7992]
[1754797760075,2.15506,4243.4,4243.3,3.7992]
[1754797760476,0.35345,4243.5,4243.4,2.3022]
[1754797760676,0.35345,4243.5,4243.4,3.7992]
[1754797760877,3.30776418,4244.1,4244.0,1.497]
[1754797761081,4.75336418,4244.1,4244.0,3.7992]
[1754797761375,4.1912,4244.1,4244.0,3.7992]
[1754797762368,0.94404,4243.7,4243.6,1.0791]
[1754797762572,3.37914,4243.7,4243.6,25.3161]
[1754797763070,4.19124,4243.7,4243.6,25.3161]
[1754797763378,0.35344,4243.7,4243.6,26.0782]
[1754797763573,0.35343,4243.8,4243.7,1.3961]
[1754797763771,0.35343,4243.8,4243.7,4.1347382]
[1754797764174,1.71803,4243.8,4243.7,4.1347382]
[1754797764373,2.74563,4243.8,4243.7,4.1347382]
[1754797764573,3.36143,4243.8,4243.7,4.1347382]
[1754797765174,4.19123,4243.8,4243.7,0.3355382]
[1754797765770,3.8378,4243.8,4243.4,3.2078]
[1754797766074,3.8378,4243.8,4243.2,0.5]
[1754797766075,3.24567,4243.3,4243.2,3.5371]
[1754797766282,3.24567,4243.3,4243.2,26.5702]
[1754797766778,4.69127,4243.3,4243.2,26.5702]
[1754797766979,0.5,4243.3,4243.2,26.5702]
[1754797767579,0.5,4243.3,4243.2,26.92368]
[1754797767772,0.5,4243.3,4243.2,27.0733992]
[1754797768281,0.35339,4244.3,4244.2,3.7992]
[1754797768481,0.35339,4244.3,4244.2,26.0662]
[1754797768672,2.74559,4244.3,4244.2,26.0662]
[1754797768880,4.19119,4244.3,4244.2,26.0662]
[1754797769077,4.19119,4244.3,4244.2,25.3041]
[1754797770582,2.76334,4243.6,4243.5,1.497]
[1754797770785,2.76334,4243.6,4243.5,23.761]
[1754797771083,2.76334,4243.6,4243.5,25.3011]
[1754797771283,4.19124,4243.6,4243.5,25.45089362]
[1754797773985,3.8378,4243.6,4243.5,25.45089362]
[1754797774282,3.8378,4243.6,4243.5,3.18689362]
[1754797774782,1.71803,4243.8,4243.7,1.497]
[1754797774983,2.15503,4243.8,4243.7,3.94907936]
[1754797775284,4.22343,4243.8,4243.7,3.94907936]
[1754797775877,0.35342,4244.0,4243.7,3.94907936]
[1754797776079,1.94272,4244.0,4243.9,2.9824]
[1754797776378,3.33672,4244.0,4243.9,2.9618]
[1754797776578,3.33672,4244.0,4243.9,2.3396]
[1754797776779,4.11142,4244.0,4243.9,24.5946]
[1754797777180,3.758,4243.6,4243.5,0.5]
[1754797777379,1.64344,4243.7,4243.6,3.7958]
[1754797777579,2.05924,4243.7,4243.6,3.7958]
[1754797777780,4.11144,4243.7,4243.6,3.7958]
[1754797777984,4.11144,4243.7,4243.6,26.0488]
[1754797778384,0.35343,4243.8,4243.6,26.0488]
[1754797778576,1.84642261,4244.3,4244.2,1.5262]
[1754797778783,2.05919,4244.3,4244.2,23.7782]
[1754797779088,3.85372261,4244.3,4244.2,23.7782]
[1754797779379,4.67332261,4244.3,4244.2,26.0478]
[1754797779985,4.11139,4244.3,4244.2,25.2138]
[1754797780685,3.758,4243.8,4243.7,3.7974]
[1754797780884,3.758,4243.8,4243.7,26.19726796]
[1754797781485,3.758,4243.8,4243.7,27.94726796]
[1754797781684,3.758,4243.8,4243.7,28.56946796]
[1754797782784,0.9311,4243.8,4243.7,4.46786796]
[1754797782983,0.9311,4243.8,4243.7,5.69726796]
[1754797782984,3.758,4243.8,4243.7,5.69726796]
[1754797783285,3.758,4243.8,4243.7,25.60366796]
[1754797783787,3.758,4243.8,4243.7,22.39586796]
[1754797784388,3.758,4243.8,4243.7,0.14986796]
[1754797784686,3.758,4243.8,4243.7,22.39386796]
[1754797786389,3.758,4243.8,4243.7,23.50406796]
[1754797786587,3.758,4243.8,4243.7,26.18966796]
[1754797787778,0.35341,4244.1,4243.9,1.5262]
[1754797787978,0.56193261,4244.9,4244.7,0.5896]
[1754797788186,0.35334,4244.9,4244.8,23.643]
[1754797788382,1.12804,4244.9,4244.8,23.643]
[1754797788886,2.71734,4244.9,4244.8,23.643]
[1754797789090,4.11134,4244.9,4244.8,23.643]
[1754797789988,0.35334,4244.9,4244.8,23.643]
[1754797790181,2.05914,4244.9,4244.8,23.643]
[1754797790377,2.71734,4244.9,4244.8,23.643]
[1754797790586,0.9311,4244.7,4244.3,0.8134]
[1754797790785,2.3251,4244.5,4244.4,0.15174451]
[1754797790981,3.758,4244.5,4244.4,1.55474451]
[1754797791177,0.35336,4244.6,4244.4,23.78974451]
[1754797791387,3.29171,4245.2,4245.1,0.5896]
[1754797791593,4.11131,4245.2,4245.1,23.637]
[1754797791889,1.12801,4245.2,4245.1,23.637]
[1754797792389,2.63351,4245.2,4245.1,23.637]
[1754797792685,0.6582,4244.6,4244.4,3.2078]
[1754797792877,3.758,4244.5,4244.4,4.6108]
[1754797793082,3.758,4244.5,4244.4,26.99448233]
[1754797793688,4.11137,4244.5,4244.4,26.99448233]
[1754797794489,4.11137,4244.5,4244.4,26.18108233]
[1754797794690,4.11137,4244.5,4244.4,26.99448233]
[1754797794988,4.11137,4244.5,4244.4,4.76248233]
[1754797795190,4.11137,4244.5,4244.4,26.0264]
[1754797795389,4.11137,4244.5,4244.4,26.8398]
[1754797796484,4.11137,4244.5,4244.4,2.66803]
[1754797796690,4.11142,4243.9,4243.8,34.7534]
[1754797796885,4.11142,4243.9,4243.8,34.90506721]
[1754797797191,4.11142,4243.9,4243.8,57.1310931]
[1754797797791,4.11142,4243.9,4243.8,56.9794]
[1754797800191,4.11142,4243.9,4243.8,56.9774]
[1754797800392,4.11142,4243.9,4243.8,56.164]
[1754797800593,4.11142,4243.9,4243.7,0.5]
[1754797800594,3.758,4243.8,4243.7,0.5]
[1754797800794,3.758,4243.8,4243.7,22.723]
[1754797800996,3.758,4243.8,4243.7,22.0524]
[1754797801191,1.5055,4243.6,4243.5,3.2078]
[1754797801396,3.758,4243.6,4243.5,3.2078]
[1754797801896,3.758,4243.6,4243.5,25.4298]
[1754797802196,3.758,4243.6,4243.5,3.2078]
[1754797802590,1.5055,4243.4,4243.3,22.221]
[1754797802796,3.758,4243.4,4243.3,22.221]
[1754797803192,2.9384,4243.1,4243.0,3.7974]
[1754797803498,3.758,4243.1,4243.0,27.871]
[1754797804697,3.758,4243.1,4243.0,3.2078]
[1754797804897,3.758,4243.1,4243.0,26.0184]
[1754797805098,3.758,4243.1,4243.0,27.2478]
[1754797805296,3.758,4243.1,4243.0,27.8628]
[1754797805697,2.9384,4243.1,4243.0,27.8628]
[1754797806197,3.7998,4243.1,4243.0,27.8628]
[1754797806896,3.7998,4243.1,4243.0,27.8598]
[1754797807499,3.7998,4243.1,4243.0,5.6418]
[1754797807701,3.7998,4243.1,4243.0,27.8598]
[1754797808195,0.35354,4242.5,4242.4,0.8095]
[1754797808400,3.30604,4242.5,4242.4,24.6672]
[1754797808606,2.9525,4242.5,4242.4,24.6672]
[1754797809099,2.3281,4242.5,4242.4,24.6672]
[1754797809489,1.7441,4242.5,4242.4,24.6672]
[1754797809693,3.8139,4242.5,4242.4,2.4502]
[1754797809894,3.8139,4242.5,4242.4,22.217]
[1754797809895,4.16744,4242.5,4242.4,22.217]
[1754797810201,3.8139,4242.3,4242.2,25.4238]
[1754797810403,3.8139,4242.3,4242.2,26.0028]
[1754797810698,3.8139,4242.3,4242.2,26.8123]
[1754797811491,3.8139,4242.3,4242.2,27.874]
[1754797812907,0.7692,4242.3,4242.2,27.874]
[1754797813113,1.3105,4242.3,4242.2,27.874]
[1754797813314,2.9525,4242.3,4242.2,27.874]
[1754797814707,3.8139,4242.3,4242.2,27.874]
[1754797816108,3.8139,4242.3,4242.2,26.8123]
[1754797816408,3.8139,4242.3,4242.2,27.874]
[1754797817217,3.8139,4242.3,4242.2,3.2078]
[1754797817418,3.8139,4242.3,4242.2,25.4188]
[1754797817712,3.8139,4242.3,4242.2,26.8073]
[1754797817914,3.8139,4242.3,4242.2,27.4223]
[1754797818415,3.8139,4242.3,4242.2,27.869]
[1754797820617,4.3139,4242.3,4242.2,28.369]
[1754797823214,4.3139,4242.3,4242.2,26.4908]
[1754797823519,4.3139,4242.3,4242.2,28.362]
[1754797826018,1.9349,4243.2,4242.3,0.9813]
[1754797826225,4.16738,4243.2,4243.1,1.8352]
[1754797826424,4.16738,4243.2,4243.1,24.0362]
[1754797828023,1.12268,4243.2,4243.1,24.0376]
[1754797829025,2.09758,4243.2,4243.1,24.0376]
[1754797829224,2.72198,4243.2,4243.1,24.0376]
[1754797829628,3.30598,4243.2,4243.1,24.0376]
[1754797830016,4.16738,4243.2,4243.1,24.0376]
[1754797830216,4.16738,4243.2,4243.1,1.3885]
[1754797830430,4.16738,4243.2,4243.1,22.774]
[1754797830726,4.16738,4243.2,4243.1,23.5835]
[1754797831828,4.16738,4243.2,4243.1,23.7409]
[1754797832128,4.16738,4243.2,4243.1,22.774]
[1754797832516,4.16738,4243.2,4243.1,23.5815]
[1754797832924,4.16738,4243.2,4243.1,1.3885]
[1754797833126,0.55984351,4243.6,4242.7,3.2078]
[1754797833127,0.8614,4243.1,4243.0,22.191]
[1754797833326,1.91241,4242.8,4242.7,5.007]
[1754797833524,4.16741,4242.8,4242.7,27.198]
[1754797834330,4.16741,4242.8,4242.7,5.007]
[1754797834829,4.16741,4242.8,4242.7,27.196]
[1754797835030,4.16741,4242.8,4242.7,3.7868]
[1754797835232,4.16741,4242.8,4242.7,22.188]
[1754797835528,4.16741,4242.8,4242.7,23.5775]
[1754797836024,4.16741,4242.8,4242.7,23.7288]
[1754797836228,4.16741,4242.8,4242.7,23.9709]
[1754797836430,4.16741,4242.8,4242.7,27.1787]
[1754797837629,0.7692,4242.8,4242.7,27.1787]
[1754797837823,0.5,4243.2,4243.1,1.7829]
[1754797837824,2.17638,4243.2,4243.1,1.7829]
[1754797838128,2.17638,4243.2,4243.1,24.4669]
[1754797838529,1.3129,4243.2,4243.1,24.4669]
[1754797838728,2.8529,4243.2,4243.1,24.4669]
[1754797838928,2.2287,4243.2,4243.1,24.4669]
[1754797840320,1.8229,4243.2,4243.1,24.4669]
[1754797840525,1.3129,4243.2,4243.1,24.4669]
[1754797842526,1.8229,4243.2,4243.1,24.4669]
[1754797842726,3.4242,4243.2,4243.1,24.4669]
[1754797843222,4.2679,4243.2,4243.1,24.4669]
[1754797843437,3.4242,4243.2,4243.1,24.4669]
[1754797843731,2.2287,4243.2,4243.1,24.4669]
[1754797844033,2.2287,4243.2,4243.1,24.4579]
[1754797844734,1.3129,4243.2,4243.1,24.4579]
[1754797845732,1.8229,4243.2,4243.1,24.4579]
[1754797846937,2.2287,4243.2,4243.1,24.4579]
[1754797847130,2.8529,4243.2,4243.1,24.4579]
[1754797850434,4.2679,4243.2,4243.1,24.4579]
[1754797852735,4.2679,4243.2,4243.1,2.2829]
[1754797852935,4.2679,4243.2,4243.1,24.4449]
[1754797853135,4.2679,4243.2,4243.1,24.4439]
[1754797854639,4.2679,4243.2,4243.1,22.661]
[1754797858043,1.3129,4243.2,4243.1,24.4439]
[1754797859146,0.5,4243.2,4243.1,24.59589997]
[1754797859746,0.5,4243.2,4243.1,24.59829997]
[1754797860744,1.3129,4243.2,4243.1,24.59829997]
[1754797864044,2.2287,4243.2,4243.1,2.04149997]
[1754797864245,4.2679,4243.2,4243.1,22.79499997]
[1754797864641,4.2679,4243.2,4243.1,23.64099997]
[1754797865046,4.2679,4243.2,4243.1,24.18449997]
[1754797865545,4.2679,4243.2,4243.1,0.5]
[1754797865740,4.2679,4243.2,4243.1,22.642]
[1754797867752,4.2679,4243.2,4243.1,0.5]
[1754797867942,4.2679,4243.2,4243.1,22.641]
[1754797868144,4.2679,4243.2,4243.1,22.637]
[1754797869643,4.2679,4243.2,4243.1,0.5]
[1754797869847,1.4933,4242.8,4242.7,3.2078]
[1754797870048,3.7222,4242.8,4242.7,25.4947723]
[1754797870347,3.7222,4242.8,4242.7,27.4669723]
[1754797871442,3.7222,4242.8,4242.7,3.3597723]
[1754797871836,3.7222,4242.8,4242.7,25.3408]
[1754797872737,3.7222,4242.8,4242.7,22.133]
[1754797873749,3.7222,4242.8,4242.7,22.9482]
[1754797874147,1.4933,4242.6,4242.5,1.157]
[1754797874449,3.7222,4242.6,4242.5,24.25312627]
[1754797874949,3.7222,4242.6,4242.5,24.67272627]
[1754797875842,3.7222,4242.6,4242.5,24.67542627]
[1754797876951,3.7222,4242.6,4242.5,0.15192627]
[1754797877255,3.7222,4242.3,4242.2,3.2078]
[1754797878744,0.35359,4241.8,4241.7,3.2078]
[1754797878952,4.07579,4241.8,4241.7,3.2078]
[1754797881250,0.88391,4242.2,3592.6,0.92533411]
[1754797881251,4.07584,4241.3,4241.2,3.2078]
[1754797881548,0.7824,4240.5,4240.1,4.023]
[1754797881745,1.4933,4240.3,4240.2,24.67973444]
[1754797882150,0.9402,4240.3,4240.2,24.5155]
[1754797882348,3.7222,4240.3,4240.2,2.3945]
[1754797882858,3.7222,4240.3,4240.2,24.5145]
[1754797883455,3.7222,4240.3,4240.2,24.5135]
[1754797884049,3.7222,4240.3,4240.2,2.3945]
[1754797884251,3.7222,4240.3,4240.2,24.5145]
[1754797885156,3.7222,4240.3,4240.2,24.5135]
[1754797885362,3.7222,4240.3,4240.2,2.3945]
[1754797885553,3.7222,4240.3,4240.2,24.5125]
[1754797887359,3.7222,4240.3,4240.2,2.3945]
[1754797887660,3.7222,4240.3,4240.2,24.5125]
[1754797888160,3.7222,4240.3,4240.2,24.5115]
[1754797888660,3.7222,4240.3,4240.2,2.3945]
[1754797888856,3.7222,4240.3,4240.2,24.5105]
[1754797889661,4.07592,4240.3,4240.2,24.5105]
[1754797890957,3.7222,4240.3,4240.2,24.5105]
[1754797891859,3.7222,4240.3,4240.2,2.3918]
[1754797892060,3.7222,4240.3,4240.2,24.5048]
[1754797892959,3.7222,4240.3,4240.2,24.5075]
[1754797895458,0.7815,4240.5,4240.4,0.9568]
[1754797895654,0.7815,4240.5,4240.4,2.3446]
[1754797895856,0.7815,4240.7,4240.6,0.9607]
[1754797896056,0.7815,4240.7,4240.6,27.6614]
[1754797896660,1.30825,4241.2,4241.1,0.9607]
[1754797896860,1.93955,4241.2,4241.1,24.4501]
[1754797897063,3.24455,4241.2,4241.1,27.6579]
[1754797897265,1.7361,4241.2,4241.1,27.6579]
[1754797897967,1.3327,4241.2,4241.1,27.6579]
[1754797898263,0.7815,4241.2,4241.1,27.6579]
[1754797898466,0.7815,4241.2,4241.1,27.6604]
[1754797898662,0.3536,4241.8,4241.4,0.9607]
[1754797898865,0.5512,4241.7,4241.6,4.1685]
[1754797899069,0.5512,4241.7,4241.6,27.6539]
[1754797899270,2.3674,4241.7,4241.6,27.6539]
[1754797900071,0.7815,4241.7,4241.6,27.6564]
[1754797900674,0.7815,4242.3,4242.2,0.9607]
[1754797900878,3.6724,4242.3,4242.2,25.8705]
[1754797901079,3.0411,4241.7,4241.6,4.5556]
[1754797901380,3.6724,4241.7,4241.6,27.6509]
[1754797902074,2.8843,4241.7,4241.6,27.6509]
[1754797902675,2.3674,4241.7,4241.6,27.6509]
[1754797902871,1.7361,4241.7,4241.6,27.6509]
[1754797903072,0.7815,4241.7,4241.6,27.6509]
[1754797903272,1.13508,4242.0,4241.9,0.9607]
[1754797903472,1.13508,4242.0,4241.9,24.4391]
[1754797903977,0.7815,4242.0,4241.9,24.4391]
[1754797904485,1.3327,4242.0,4241.9,24.4391]
[1754797904777,1.3327,4242.0,4241.7,0.0025]
[1754797904778,3.6724,4241.7,4241.6,5.5499]
[1754797905077,3.6724,4241.7,4241.6,27.6419]
[1754797906682,3.6724,4241.7,4241.6,27.0437]
[1754797906882,3.6724,4241.7,4241.6,27.6419]
[1754797907381,0.7815,4241.7,4241.6,27.6389]
[1754797909379,1.3327,4241.7,4241.6,27.6389]
[1754797909688,2.3674,4241.7,4241.6,27.6389]
[1754797909979,2.8843,4241.7,4241.6,27.6389]
[1754797910181,3.6724,4241.7,4241.6,27.6389]
[1754797910984,3.6724,4241.7,4241.6,26.6446]
[1754797911384,3.6724,4241.7,4241.6,27.2389]
[1754797911580,4.1724,4241.7,4241.6,27.7389]
[1754797912174,4.1724,4241.7,4241.6,5.6499]
[1754797912388,4.1724,4241.7,4241.6,27.7299]
[1754797912774,4.1724,4241.7,4241.6,5.6499]
[1754797912974,4.1724,4241.7,4241.6,27.7289]
[1754797913480,4.1724,4241.7,4241.6,25.7868]
[1754797913680,4.1724,4241.7,4241.6,25.7848]
[1754797913978,4.1724,4241.7,4241.6,27.1326]
[1754797914186,4.1724,4241.7,4241.6,28.1269]
[1754797914485,1.2815,4241.7,4241.6,28.1269]
[1754797916180,1.8327,4241.7,4241.6,28.1269]
[1754797916376,2.2361,4241.7,4241.6,28.1269]
[1754797916583,2.8674,4241.7,4241.6,28.1269]
[1754797916784,3.3843,4241.7,4241.6,28.1269]
[1754797917182,0.5,4241.7,4241.6,28.1269]
[1754797917384,1.3327,4242.4,4242.3,0.7481]
[1754797917689,1.3327,4242.4,4242.3,26.9287]
[1754797917885,0.7815,4242.4,4242.3,26.9287]
[1754797919883,2.3674,4242.4,4242.3,26.9287]
[1754797920083,2.2009,4243.2,4242.4,0.7871]
[1754797920283,2.2009,4243.2,4242.3,25.4662]
[1754797920284,1.7361,4242.6,4242.5,23.7159]
[1754797920478,3.2078,4243.4,4242.5,23.7159]
[1754797920479,0.7815,4243.0,4242.6,0.35353]
[1754797920680,0.5512,4243.0,4242.9,1.6499]
[1754797920980,1.14158,4243.2,4242.8,3.2078]
[1754797920981,3.2444,4242.9,4242.8,3.2078]
[1754797921183,4.0259,4242.9,4242.8,26.6235]
[1754797921383,2.3674,4242.9,4242.8,26.9217]
[1754797921580,1.1849,4242.9,4242.8,26.9217]
[1754797921785,0.7815,4242.9,4242.8,26.9242]
[1754797921988,3.6724,4244.5,4244.4,1.4625]
[1754797922184,3.6724,4244.5,4244.4,1.6499]
[1754797922387,2.3674,4243.7,4243.6,0.7871]
[1754797922585,3.6724,4243.7,4243.6,23.7119]
[1754797923187,3.6724,4243.7,4243.6,23.7099]
[1754797924786,3.6724,4243.7,4243.6,1.3478]
[1754797925089,2.3674,4243.7,4243.6,23.5922]
[1754797925288,2.2741,4244.3,4244.2,0.5422]
[1754797925483,3.7129,4244.3,4244.2,23.4963]
[1754797925893,3.7129,4244.3,4244.2,23.6525]
[1754797926392,2.8849,4244.3,4244.2,26.8603]
[1754797926592,2.3291,4244.3,4244.2,26.8603]
[1754797927087,1.7183,4244.3,4244.2,26.8603]
[1754797927287,1.2996,4244.3,4244.2,26.8603]
[1754797927493,0.7847,4244.3,4244.2,26.8627]
[1754797927887,1.2996,4245.1,4245.0,1.5955]
[1754797928088,1.2996,4245.1,4245.0,23.6465]
[1754797928089,0.7847,4245.1,4245.0,23.6465]
[1754797928293,1.2996,4245.1,4245.0,23.6465]
[1754797928496,2.3291,4245.1,4245.0,23.6465]
[1754797928795,2.8849,4245.1,4245.0,23.6465]
[1754797929296,3.7129,4245.1,4245.0,23.6465]
[1754797930897,3.71702385,4245.1,4245.0,23.6465]
[1754797931500,3.71702385,4245.1,4245.0,22.5872]
[1754797932394,1.72242385,4245.1,4245.0,22.5872]
[1754797932599,1.72242385,4245.1,4245.0,23.6405]
[1754797933296,0.78882385,4245.1,4245.0,23.6405]
[1754797933796,3.2078,4245.8,4245.0,23.6405]
[1754797933797,0.7847,4246.7,4245.7,0.5422]
[1754797933995,3.7129,4246.0,4245.8,22.038]
[1754797934194,3.7129,4245.9,4245.8,22.5802]
[1754797934496,3.7129,4245.9,4245.8,26.8112]
[1754797934895,3.7129,4245.9,4245.8,3.2078]
[1754797935095,3.7129,4245.4,4245.3,4.0097]
[1754797935297,0.6108,4246.5,4246.1,0.679]
[1754797935488,1.5444,4246.2,4246.1,1.5654]
[1754797935693,2.1002,4246.2,4246.1,1.5654]
[1754797935889,0.7847,4246.2,4246.1,23.95264]
[1754797936089,0.7847,4246.2,4246.1,23.5994]
[1754797936289,1.7183,4246.2,4246.1,23.5994]
[1754797936594,3.7129,4246.0,4245.9,3.2078]
[1754797936794,3.7129,4246.0,4245.9,25.782]
[1754797937004,3.7129,4245.6,4245.5,1.5654]
[1754797937201,3.7129,4245.6,4245.5,23.5974]
[1754797937390,1.7183,4245.6,4245.5,1.5654]
[1754797937594,1.7183,4245.6,4245.5,23.5974]
[1754797937993,2.3291,4245.6,4245.5,23.5974]
[1754797938700,3.7129,4245.6,4245.5,23.5974]
[1754797939096,3.7129,4245.6,4245.5,0.5422]
[1754797939302,3.7129,4245.6,4245.5,23.3701]
[1754797940301,3.7129,4245.6,4245.5,23.4546]
[1754797940500,3.7129,4245.6,4245.5,23.4562]
[1754797940994,3.7129,4245.6,4245.5,1.3441]
[1754797941196,3.7129,4245.6,4245.5,22.5642]
[1754797941698,3.7129,4245.6,4245.5,0.5422]
[1754797942196,3.7129,4245.6,4245.5,23.3651]
[1754797942396,2.8849,4245.6,4245.5,23.5864]
[1754797942592,0.7847,4245.6,4245.5,1.5654]
[1754797942796,2.3291,4245.6,4245.5,23.5864]
[1754797944805,1.7183,4245.6,4245.5,23.5864]
[1754797944991,1.2996,4245.6,4245.5,23.5864]
[1754797945198,0.5,4246.2,4245.5,28.1055]
[1754797945391,1.2847,4246.2,4246.1,2.0664]
[1754797945700,1.2847,4246.2,4246.1,24.0834]
[1754797946703,0.55280586,4247.3,4246.2,1.68497]
[1754797947001,3.7129,4247.3,4247.2,4.5519]
[1754797947200,3.7129,4247.3,4247.2,26.5649]
[1754797947901,2.8849,4247.3,4247.2,26.5649]
[1754797948300,2.8849,4247.3,4247.2,4.5519]
[1754797948503,3.7129,4247.3,4247.2,4.5519]
[1754797948701,3.7129,4247.3,4247.2,25.762]
[1754797948905,2.8849,4247.3,4247.2,26.5639]
[1754797949092,1.7183,4247.3,4247.2,26.5639]
[1754797949295,0.7847,4247.3,4247.2,26.5639]
[1754797949493,0.828,4247.9,4247.2,26.5639]
[1754797949701,1.2996,4247.7,4247.6,0.5422]
[1754797950002,1.2996,4247.7,4247.6,23.3521]
[1754797950407,1.7183,4247.7,4247.6,23.3521]
[1754797951201,2.3291,4247.7,4247.6,23.3521]
[1754797952109,2.8849,4247.7,4247.6,23.3521]
[1754797952703,3.7129,4247.7,4247.6,23.3521]
[1754797952905,3.7129,4247.7,4247.6,0.5422]
[1754797953105,3.7129,4247.7,4247.6,23.3471]
[1754797954201,0.35306,4248.3,4247.6,23.3471]
[1754797954411,4.06597,4248.1,4248.0,1.3441]
[1754797954610,3.7129,4248.1,4248.0,23.3451]
[1754797955603,3.7129,4248.1,4248.0,22.5432]
[1754797955809,3.6948,4247.8,4247.7,1.3078]
[1754797956004,3.6948,4247.8,4247.7,23.3058]
[1754797956211,1.8476,4247.8,4247.6,0.5]
[1754797956418,3.6948,4247.7,4247.6,0.5]
[1754797956615,3.6948,4247.7,4247.6,22.497]
[1754797956915,3.6948,4247.7,4247.6,23.8048]
[1754797957113,3.6948,4247.7,4247.6,1.0351]
[1754797957414,3.6948,4247.7,4247.6,23.0321]
[1754797958109,3.6948,4247.7,4247.6,23.8048]
[1754797958311,0.831,4247.7,4247.6,23.8048]
[1754797959415,0.95257,4248.1,4247.6,23.8048]
[1754797959609,2.094,4248.0,4247.9,0.5351]
[1754797959804,2.094,4248.0,4247.9,26.5086]
[1754797959805,2.8638,4248.0,4247.9,26.5086]
[1754797960117,3.6948,4248.0,4247.9,26.5086]
[1754797960316,2.925,4248.0,4247.9,26.5086]
[1754797960516,2.3255,4248.0,4247.9,26.5086]
[1754797960907,1.7755,4248.0,4247.9,26.5086]
[1754797961112,1.1408,4248.4,4248.2,0.7727]
[1754797961316,2.925,4248.4,4248.3,23.2988]
[1754797961618,3.6948,4248.4,4248.3,23.2988]
[1754797963019,2.925,4248.4,4248.3,23.2988]
[1754797963421,3.6948,4248.4,4248.3,23.2988]
[1754797965619,2.3255,4248.4,4248.3,23.2988]
[1754797965820,2.925,4248.4,4248.3,23.2988]
[1754797966015,3.6948,4248.4,4248.3,23.2988]
[1754797968322,3.6948,4248.4,4248.3,1.3078]
[1754797968620,3.6948,4248.4,4248.3,23.2878]
[1754797969223,2.925,4248.4,4248.3,23.2878]
[1754797969722,3.6948,4248.4,4248.3,23.2878]
[1754797970518,3.6948,4248.4,4248.3,23.7878]
[1754797970924,2.925,4248.4,4248.3,23.7878]
[1754797971221,3.6948,4248.4,4248.3,23.7878]
[1754797971424,3.6948,4248.4,4248.3,23.95294382]
[1754797971819,2.925,4248.4,4248.3,0.66514382]
[1754797972122,3.6948,4248.4,4248.3,23.7838]
[1754797972322,3.6948,4248.4,4248.3,23.94903106]
[1754797973721,0.831,4248.7,4248.4,0.7727]
[1754797973926,1.3723,4248.7,4248.6,4.5156]
[1754797974129,1.7755,4248.7,4248.6,5.03386106]
[1754797974627,0.831,4248.7,4248.6,4.68083106]
[1754797976929,2.925,4249.2,4249.1,1.3078]
[1754797977127,3.6948,4249.2,4249.1,26.4836]
[1754797977321,2.925,4249.2,4249.1,26.4836]
[1754797977922,0.7698,4249.5,4249.4,1.4421]
[1754797977923,1.9193,4249.5,4249.4,1.4421]
[1754797978128,2.8638,4249.5,4249.4,25.3478]
[1754797978727,3.41864465,4250.3,4250.2,3.3808]
[1754797979025,2.8638,4250.3,4250.2,26.38232257]
[1754797979227,2.8638,4250.3,4250.2,26.9895]
[1754797979428,2.8638,4250.3,4250.2,27.3801]